bitfinex-derivatives/quotes_ETHF0:USTF0_20260125
["timestamp","ask_amount","ask_price","bid_price","bid_amount"]
[1769310236175,4.29931663,2956.1,2954.6,0.15027225]
[1769310236474,4.29931663,2956.0,2954.6,0.15027225]
[1769310236673,4.29931663,2955.9,2954.6,0.15027225]
[1769310236877,4.29931663,2955.8,2954.6,0.15027225]
[1769310237077,1.987,2956.2,2954.6,0.15027225]
[1769310237278,4.29943195,2956.1,2954.6,0.15027225]
[1769310237473,4.29943195,2956.0,2954.6,0.15027225]
[1769310237675,4.29943195,2955.9,2954.6,0.15027225]
[1769310237872,4.29943195,2955.8,2954.6,0.15027225]
[1769310238074,4.29943195,2955.7,2954.6,0.15027225]
[1769310238374,1.987,2956.2,2954.6,0.15027225]
[1769310238573,4.2997011,2956.1,2954.6,0.15027225]
[1769310238870,4.2997011,2956.0,2954.6,0.15027225]
[1769310239074,4.2997011,2955.9,2954.6,0.15027225]
[1769310239373,4.2997011,2955.8,2954.6,0.15027225]
[1769310239573,4.2997011,2955.7,2954.6,0.15027225]
[1769310239774,1.987,2956.2,2954.6,0.15027225]
[1769310239976,4.29985512,2956.1,2954.6,0.15027225]
[1769310240177,4.29985512,2956.0,2954.6,0.15027225]
[1769310240378,4.29985512,2955.9,2954.6,0.15027225]
[1769310240579,4.29985512,2955.8,2954.6,0.15027225]
[1769310240779,4.29985512,2955.7,2954.6,0.15027225]
[1769310241080,1.987,2956.2,2954.6,0.15027225]
[1769310241278,4.30003119,2956.1,2954.6,0.15027225]
[1769310241478,4.30003119,2956.0,2954.6,0.15027225]
[1769310241679,4.30003119,2955.9,2954.6,0.15027225]
[1769310241877,4.30003119,2955.9,2954.5,0.16949]
[1769310241878,4.30003119,2955.8,2954.2,0.15069949]
[1769310242176,4.30003119,2955.7,2954.2,0.15069949]
[1769310242381,4.30003119,2955.6,2953.9,0.17274979]
[1769310242577,4.30403047,2955.5,2953.9,0.32344928]
[1769310242881,4.30003119,2955.4,2953.9,0.32344928]
[1769310243081,4.30003119,2955.3,2953.9,0.32344928]
[1769310243282,4.30003119,2955.2,2953.9,0.32344928]
[1769310243481,0.00399928,2955.5,2953.9,0.32344928]
[1769310243682,4.29410089,2955.4,2953.9,0.32344928]
[1769310243885,4.29410089,2955.3,2953.9,0.32344928]
[1769310244177,4.29410089,2955.2,2953.9,0.00321979]
[1769310244381,4.29410089,2955.1,2953.9,0.00321979]
[1769310244579,1.99099928,2955.3,2953.9,0.00321979]
[1769310244781,4.29159842,2955.2,2953.9,0.00321979]
[1769310244992,4.29159842,2955.1,2953.9,0.00321979]
[1769310245177,1.99099928,2955.3,2953.9,0.00321979]
[1769310245372,4.29001285,2955.2,2953.9,0.00321979]
[1769310245678,1.99099928,2955.3,2953.9,0.00321979]
[1769310245986,4.30454282,2955.2,2953.9,0.00321979]
[1769310246282,1.99099928,2955.3,2953.9,0.00321979]
[1769310246484,4.30279556,2955.2,2953.9,0.00321979]
[1769310246683,1.99099928,2955.3,2953.9,0.00321979]
[1769310246884,4.30279593,2955.2,2953.9,0.00321979]
[1769310247083,1.99099928,2955.3,2953.9,0.00321979]
[1769310247278,4.30278959,2955.2,2953.9,0.00321979]
[1769310247480,1.99099928,2955.3,2953.9,0.00321979]
[1769310247685,4.30174021,2955.2,2953.9,0.00321979]
[1769310247886,1.99099928,2955.3,2953.9,0.00321979]
[1769310248084,4.30164871,2955.2,2953.9,0.00321979]
[1769310248284,1.99099928,2955.3,2953.9,0.00321979]
[1769310248586,4.30077805,2955.2,2953.9,0.00321979]
[1769310248781,1.987,2955.3,2953.9,0.15325308]
[1769310248985,4.30078157,2955.2,2953.9,0.15325308]
[1769310249186,1.987,2955.3,2953.9,0.15325308]
[1769310249386,4.30019499,2955.2,2953.9,0.15325308]
[1769310249584,1.987,2955.3,2953.9,0.15325308]
[1769310249781,4.30010487,2955.2,2953.9,0.15325308]
[1769310250084,1.987,2955.3,2953.9,0.15325308]
[1769310250281,4.30010512,2955.2,2953.9,0.15325308]
[1769310250476,1.987,2955.3,2953.9,0.15325308]
[1769310250686,4.29948524,2955.2,2953.9,0.15325308]
[1769310250886,1.987,2955.3,2953.9,0.15325308]
[1769310251086,4.29948494,2955.2,2953.9,0.15325308]
[1769310251287,1.987,2955.3,2953.9,0.15325308]
[1769310263301,4.29944887,2955.2,2953.9,0.15325308]
[1769310263502,1.987,2955.3,2953.9,0.15325308]
[1769310263701,4.29945424,2955.2,2953.9,0.15325308]
[1769310263902,1.987,2955.3,2953.9,0.15325308]
[1769310264103,4.29945466,2955.2,2953.9,0.15325308]
[1769310264309,1.987,2955.3,2953.9,0.15325308]
[1769310264502,4.30011133,2955.2,2953.9,0.15325308]
[1769310264704,1.987,2955.3,2953.9,0.15325308]
[1769310264898,4.30011124,2955.2,2953.9,0.15325308]
[1769310265096,1.987,2955.3,2953.9,0.15325308]
[1769310265295,4.30011156,2955.2,2953.9,0.15325308]
[1769310265498,1.987,2955.3,2953.9,0.15325308]
[1769310265699,4.30095849,2955.2,2953.9,0.15325308]
[1769310265900,1.987,2955.3,2953.9,0.15325308]
[1769310266100,4.30095949,2955.2,2953.9,0.15325308]
[1769310266401,2.336,2955.4,2953.9,0.15325308]
[1769310266599,4.30197804,2955.3,2953.9,0.15325308]
[1769310266800,4.30197804,2955.2,2953.9,0.15325308]
[1769310266998,2.336,2955.4,2953.9,0.15325308]
[1769310267201,4.30195724,2955.3,2953.9,0.15325308]
[1769310267400,4.30195724,2955.2,2953.9,0.15325308]
[1769310267601,2.336,2955.4,2953.9,0.15325308]
[1769310267803,4.30320469,2955.3,2953.9,0.15325308]
[1769310268099,4.30320469,2955.2,2953.9,0.15325308]
[1769310268299,2.336,2955.4,2953.9,0.15325308]
[1769310268501,4.30477636,2955.3,2953.9,0.15325308]
[1769310268795,4.30477636,2955.2,2953.9,0.15325308]
[1769310268999,4.30477636,2955.1,2953.9,0.15325308]
[1769310269206,2.336,2955.4,2953.9,0.15325308]
[1769310269407,4.30491974,2955.3,2953.9,0.15325308]
[1769310269604,4.30491974,2955.2,2953.9,0.15325308]
[1769310269800,4.30491974,2955.1,2953.9,0.15325308]
[1769310270004,2.336,2955.4,2953.9,0.15325308]
[1769310270203,4.30691579,2955.3,2953.9,0.15325308]
[1769310270398,4.30691579,2955.2,2953.9,0.15325308]
[1769310270603,4.30691579,2955.1,2953.9,0.15325308]
[1769310270910,2.336,2955.4,2953.9,0.15325308]
[1769310271110,4.30703013,2955.3,2953.9,0.15325308]
[1769310271310,4.30703013,2955.2,2953.9,0.15325308]
[1769310271611,4.30703013,2955.1,2953.9,0.15325308]
[1769310271810,4.30703013,2955.0,2953.9,0.15325308]
[1769310272014,2.336,2955.4,2953.9,0.15325308]
[1769310272212,4.31061979,2955.3,2953.9,0.15325308]
[1769310272512,2.336,2955.4,2953.9,0.15325308]
[1769310272513,4.31061979,2955.2,2953.9,0.15325308]
[1769310272810,4.31061979,2955.1,2953.9,0.15325308]
[1769310273010,4.31061979,2955.0,2953.9,0.15325308]
[1769310273211,2.336,2955.4,2953.9,0.15325308]
[1769310273413,4.31342047,2955.3,2953.9,0.15325308]
[1769310273713,4.31342047,2955.2,2953.9,0.15325308]
[1769310273910,4.31342047,2955.1,2953.9,0.15325308]
[1769310274110,4.31342047,2955.0,2953.9,0.15325308]
[1769310274309,2.336,2955.4,2953.9,0.15325308]
[1769310274515,4.31340753,2955.3,2953.9,0.15325308]
[1769310274713,4.31340753,2955.2,2953.9,0.15325308]
[1769310274916,4.31340753,2955.1,2953.9,0.15325308]
[1769310275109,4.31340753,2955.0,2953.9,0.15325308]
[1769310275304,2.336,2955.4,2953.9,0.15325308]
[1769310275511,4.30594174,2955.3,2953.9,0.15325308]
[1769310275711,4.30594174,2955.2,2953.9,0.15325308]
[1769310275910,4.30594174,2955.1,2953.9,0.15325308]
[1769310276214,4.30594174,2955.0,2953.9,0.15325308]
[1769310276413,4.30594174,2954.9,2953.9,0.15325308]
[1769310276714,0.00400882,2954.9,2953.9,0.15325308]
[1769310324463,0.00400882,2954.9,2954.2,0.15062837]
[1769310347882,0.00400882,2954.9,2954.4,0.15039404]
[1769310362699,0.78316452,2954.9,2953.9,0.00321979]
[1769310363200,4.28636007,2954.8,2953.9,0.00321979]
[1769310363390,0.78316452,2954.9,2953.9,0.00321979]
[1769310363593,4.2850676,2954.8,2953.9,0.00321979]
[1769310363793,0.78316452,2954.9,2953.9,0.00321979]
[1769310363999,4.28507816,2954.8,2953.9,0.00321979]
[1769310364199,0.78316452,2954.9,2953.9,0.00321979]
[1769310364405,4.28433785,2954.8,2953.9,0.00321979]
[1769310364599,0.78316452,2954.9,2953.9,0.00321979]
[1769310364796,4.2842873,2954.8,2953.9,0.00321979]
[1769310364996,0.78316452,2954.9,2953.9,0.00321979]
[1769310365194,4.28428658,2954.8,2953.9,0.00321979]
[1769310365393,0.78316452,2954.9,2953.9,0.00321979]
[1769310365601,4.29350569,2954.8,2953.9,0.00321979]
[1769310365901,0.78316452,2954.9,2953.9,0.00321979]
[1769310366099,4.29349349,2954.8,2953.9,0.00321979]
[1769310366301,0.78316452,2954.9,2953.9,0.00321979]
[1769310372013,4.29144353,2954.8,2953.9,0.00321979]
[1769310372304,0.78316452,2954.9,2953.9,0.00321979]
[1769310372504,4.29118938,2954.8,2953.9,0.00321979]
[1769310372713,0.78316452,2954.9,2953.9,0.00321979]
[1769310373004,4.29119065,2954.8,2953.9,0.00321979]
[1769310373207,0.78316452,2954.9,2953.9,0.00321979]
[1769310373407,4.29102863,2954.8,2953.9,0.00321979]
[1769310373609,0.78316452,2954.9,2953.9,0.00321979]
[1769310373806,4.29098459,2954.8,2953.9,0.00321979]
[1769310374005,0.78316452,2954.9,2953.9,0.00321979]
[1769310374206,4.29098417,2954.8,2953.9,0.00321979]
[1769310374406,0.78316452,2954.9,2953.9,0.00321979]
[1769310382321,4.29113994,2954.8,2953.9,0.00321979]
[1769310382609,0.78316452,2954.9,2953.9,0.00321979]
[1769310382811,4.29113964,2954.8,2953.9,0.00321979]
[1769310383010,0.00400882,2954.9,2953.9,0.00321979]
[1769310383214,4.29114081,2954.8,2953.9,0.00321979]
[1769310383415,0.00400882,2954.9,2953.9,0.00321979]
[1769310383610,4.29139449,2954.8,2953.9,0.00321979]
[1769310383815,0.00400882,2954.9,2953.9,0.00321979]
[1769310384016,4.29131137,2954.8,2953.9,0.00321979]
[1769310384318,0.00400882,2954.9,2953.9,0.00321979]
[1769310384509,4.29162774,2954.8,2953.9,0.00321979]
[1769310384714,0.00400882,2954.9,2953.9,0.00321979]
[1769310384916,4.2916294,2954.8,2953.9,0.00321979]
[1769310385114,0.00400882,2954.9,2953.9,0.00321979]
[1769310385314,4.29162732,2954.8,2953.9,0.00321979]
[1769310385517,0.00400882,2954.9,2953.9,0.00321979]
[1769310385717,4.29202295,2954.8,2953.9,0.00321979]
[1769310385911,0.00400882,2954.9,2953.9,0.00321979]
[1769310386111,4.29202521,2954.8,2953.9,0.00321979]
[1769310386410,0.00400882,2954.9,2953.9,0.00321979]
[1769310386611,4.29249813,2954.8,2953.9,0.00321979]
[1769310386820,0.00400882,2954.9,2953.9,0.00321979]
[1769310387014,4.29250033,2954.8,2953.9,0.00321979]
[1769310387210,0.00400882,2954.9,2953.9,0.00321979]
[1769310387409,4.29255524,2954.8,2953.9,0.00321979]
[1769310387607,0.00400882,2954.9,2953.9,0.00321979]
[1769310387817,4.29288756,2954.8,2953.9,0.00321979]
[1769310388017,0.00400882,2954.9,2953.9,0.00321979]
[1769310388219,4.29287184,2954.8,2953.9,0.00321979]
[1769310388517,0.00400882,2954.9,2953.9,0.00321979]
[1769310388823,4.29334007,2954.8,2953.9,0.00321979]
[1769310389018,0.00400882,2954.9,2953.9,0.00321979]
[1769310389214,4.29338641,2954.8,2953.9,0.00321979]
[1769310389415,0.00400882,2954.9,2953.9,0.00321979]
[1769310389616,4.29389913,2954.8,2953.9,0.00321979]
[1769310389814,0.00400882,2954.9,2953.9,0.00321979]
[1769310390020,4.29390008,2954.8,2953.9,0.00321979]
[1769310390219,0.00400882,2954.9,2953.9,0.00321979]
[1769310390417,4.29393296,2954.8,2953.9,0.00321979]
[1769310390623,4.29393296,2954.7,2953.9,0.00321979]
[1769310390919,4.29393296,2954.6,2953.9,0.00321979]
[1769310391121,0.00400882,2954.9,2953.9,0.00321979]
[1769310391317,4.29369015,2954.8,2953.9,0.00321979]
[1769310391515,4.29369015,2954.7,2953.9,0.00321979]
[1769310391716,4.29369015,2954.6,2953.9,0.00321979]
[1769310391917,0.00400882,2954.9,2953.9,0.00321979]
[1769310392122,4.29403925,2954.8,2953.9,0.00321979]
[1769310392322,4.29403925,2954.7,2953.9,0.00321979]
[1769310392623,4.29403925,2954.6,2953.9,0.00321979]
[1769310392814,0.00400882,2954.9,2953.9,0.00321979]
[1769310393015,4.29460708,2954.8,2953.9,0.00321979]
[1769310393216,4.29460708,2954.7,2953.9,0.00321979]
[1769310393421,4.29460708,2954.6,2953.9,0.00321979]
[1769310393621,0.00400882,2954.9,2953.9,0.00321979]
[1769310393821,4.29429225,2954.8,2953.9,0.00321979]
[1769310394120,4.29429225,2954.7,2953.9,0.00321979]
[1769310394321,4.29429225,2954.6,2953.9,0.00321979]
[1769310394621,0.00400882,2954.9,2953.9,0.00321979]
[1769310394924,4.29403823,2954.8,2953.9,0.00321979]
[1769310395118,4.29403823,2954.7,2953.9,0.00321979]
[1769310395322,4.29403823,2954.6,2953.9,0.00321979]
[1769310395511,0.00400882,2954.9,2953.9,0.00321979]
[1769310395716,4.28685969,2954.8,2953.9,0.00321979]
[1769310395921,4.28685969,2954.7,2953.9,0.00321979]
[1769310396116,4.28685969,2954.6,2953.9,0.00321979]
[1769310396420,0.00400882,2954.9,2953.9,0.00321979]
[1769310396617,4.28674858,2954.8,2953.9,0.00321979]
[1769310396814,4.28674858,2954.7,2953.9,0.00321979]
[1769310397016,4.28674858,2954.6,2953.9,0.00321979]
[1769310397216,0.00400882,2954.9,2953.9,0.00321979]
[1769310397417,4.28666558,2954.8,2953.9,0.00321979]
[1769310397622,4.28666558,2954.7,2953.9,0.00321979]
[1769310397813,4.28666558,2954.6,2953.9,0.00321979]
[1769310398014,0.00400882,2954.9,2953.9,0.00321979]
[1769310398220,4.28666513,2954.8,2953.9,0.00321979]
[1769310398420,4.28666513,2954.7,2953.9,0.00321979]
[1769310398716,4.28666513,2954.6,2953.9,0.00321979]
[1769310399019,0.00400882,2954.9,2953.9,0.00321979]
[1769310399221,4.28667917,2954.8,2953.9,0.00321979]
[1769310399425,4.28667917,2954.7,2953.9,0.00321979]
[1769310399626,4.28667917,2954.6,2953.9,0.00321979]
[1769310399827,0.00400882,2954.9,2953.9,0.00321979]
[1769310400029,4.28662993,2954.8,2953.9,0.00321979]
[1769310400330,4.28662993,2954.7,2953.9,0.00321979]
[1769310400629,4.28662993,2954.6,2953.9,0.00321979]
[1769310400927,0.00400882,2954.9,2953.9,0.00321979]
[1769310401128,4.28660163,2954.8,2953.9,0.00321979]
[1769310401325,4.28660163,2954.7,2953.9,0.00321979]
[1769310401523,4.28660163,2954.6,2953.9,0.00321979]
[1769310401724,0.00400882,2954.9,2953.9,0.00321979]
[1769310401931,4.28660604,2954.8,2953.9,0.00321979]
[1769310402227,4.28660604,2954.7,2953.9,0.00321979]
[1769310402430,4.28660604,2954.6,2953.9,0.00321979]
[1769310402630,0.00400882,2954.9,2953.9,0.00321979]
[1769310402829,4.28656449,2954.8,2953.9,0.00321979]
[1769310403030,4.28656449,2954.7,2953.9,0.00321979]
[1769310403229,4.28656449,2954.6,2953.9,0.00321979]
[1769310403434,0.00400882,2954.9,2953.9,0.00321979]
[1769310403627,4.28704813,2954.8,2953.9,0.00321979]
[1769310403826,4.28704813,2954.7,2953.9,0.00321979]
[1769310404027,4.28704813,2954.6,2953.9,0.00321979]
[1769310404226,0.00400882,2954.9,2953.9,0.00220784]
[1769310404426,4.28703113,2954.8,2953.9,0.00220784]
[1769310404628,4.28703113,2954.7,2953.9,0.00220784]
[1769310404828,4.28703113,2954.6,2953.9,0.00220784]
[1769310405029,0.00400882,2954.9,2953.9,0.00220784]
[1769310405328,4.28680513,2954.8,2953.9,0.00220784]
[1769310405529,4.28680513,2954.7,2953.9,0.00220784]
[1769310405727,4.28680513,2954.6,2953.9,0.00220784]
[1769310405927,0.00400882,2954.9,2953.9,0.00220784]
[1769310406131,4.28676986,2954.8,2953.9,0.00220784]
[1769310406331,4.28676986,2954.7,2953.9,0.00220784]
[1769310406628,4.28676986,2954.6,2953.9,0.00220784]
[1769310406832,0.00400882,2954.9,2953.9,0.00220784]
[1769310407023,4.28704339,2954.8,2953.9,0.00220784]
[1769310407224,4.28704339,2954.7,2953.9,0.00220784]
[1769310407424,4.28704339,2954.6,2953.9,0.00220784]
[1769310407627,0.00400882,2954.9,2953.9,0.00220784]
[1769310407822,0.14465483,2954.1,2952.2,0.16962]
[1769310408027,4.28711367,2954.0,2952.6,0.77937715]
[1769310408227,1.988,2954.2,2952.6,0.77937715]
[1769310408429,4.28228604,2954.1,2952.4,0.16961]
[1769310408632,4.28228604,2954.0,2952.4,0.16961]
[1769310408834,4.28228604,2953.9,2952.4,0.17229593]
[1769310409136,1.988,2954.2,2952.4,0.17229593]
[1769310409332,4.28198721,2954.1,2952.4,0.17229593]
[1769310409534,4.28198721,2954.0,2952.4,0.17229593]
[1769310409730,4.28198721,2953.9,2952.4,0.17229593]
[1769310409936,1.988,2954.2,2952.5,0.14448017]
[1769310410131,4.27918033,2954.1,2952.5,0.14448017]
[1769310410332,4.27918033,2954.0,2952.5,0.14448017]
[1769310410536,1.988,2954.2,2952.5,0.14448017]
[1769310410728,4.27716576,2954.1,2952.5,0.14448017]
[1769310410930,4.27716576,2954.0,2952.5,0.14448017]
[1769310411131,1.988,2954.2,2952.5,0.14448017]
[1769310411330,4.27716697,2954.1,2952.5,0.14448017]
[1769310411630,4.27716697,2954.0,2952.5,0.14448017]
[1769310411831,1.988,2954.2,2952.5,0.14448017]
[1769310412126,4.27559526,2954.1,2952.5,0.14448017]
[1769310412328,4.27559526,2954.0,2952.5,0.14448017]
[1769310412533,1.988,2954.2,2952.5,0.14448017]
[1769310412734,4.27434061,2954.1,2952.5,0.14448017]
[1769310412936,4.27434061,2954.0,2952.5,0.14448017]
[1769310413129,1.988,2954.2,2952.5,0.14448017]
[1769310413438,4.27434136,2954.1,2952.5,0.14448017]
[1769310413636,4.27434136,2954.0,2952.5,0.14448017]
[1769310413836,1.988,2954.2,2952.5,0.14448017]
[1769310414037,4.27332462,2954.1,2952.5,0.14448017]
[1769310414236,1.988,2954.2,2952.5,0.14448017]
[1769310414437,4.27250229,2954.1,2952.5,0.14448017]
[1769310414634,1.988,2954.2,2952.5,0.14448017]
[1769310414838,4.27250259,2954.1,2952.5,0.14448017]
[1769310415142,1.988,2954.2,2952.5,0.14448017]
[1769310415338,4.27250289,2954.1,2952.5,0.14448017]
[1769310415537,1.988,2954.2,2952.5,0.14448017]
[1769310415736,4.27184917,2954.1,2952.5,0.14448017]
[1769310415933,1.988,2954.2,2952.5,0.14448017]
[1769310416141,4.27184392,2954.1,2952.5,0.14448017]
[1769310416341,1.988,2954.2,2952.5,0.14448017]
[1769310416639,4.27133278,2954.1,2952.5,0.14448017]
[1769310416943,1.988,2954.2,2952.5,0.14448017]
[1769310417136,4.41598702,2954.1,2952.5,0.14448017]
[1769310417332,0.14465483,2954.1,2952.5,0.14448017]
[1769310426341,4.29412042,2954.0,2952.5,0.14448017]
[1769310426548,0.14465483,2954.1,2952.5,0.14448017]
[1769310426743,4.29412072,2954.0,2952.5,0.14448017]
[1769310426946,0.14465483,2954.1,2952.5,0.14448017]
[1769310427242,4.29412102,2954.0,2952.5,0.14448017]
[1769310427442,0.14465483,2954.1,2952.5,0.14448017]
[1769310427644,4.29453867,2954.0,2952.5,0.14448017]
[1769310427844,0.14465483,2954.1,2952.5,0.14448017]
[1769310428141,4.29453779,2954.0,2952.5,0.14448017]
[1769310428349,0.14465483,2954.1,2952.5,0.14448017]
[1769310428551,4.29507148,2954.0,2952.5,0.14448017]
[1769310428742,0.14465483,2954.1,2952.5,0.14448017]
[1769310428941,4.29508903,2954.0,2952.5,0.14448017]
[1769310429143,0.14465483,2954.1,2952.5,0.14448017]
[1769310429347,4.29508414,2954.0,2952.5,0.14448017]
[1769310429650,0.14465483,2954.1,2952.5,0.14448017]
[1769310429841,4.29573694,2954.0,2952.5,0.14448017]
[1769310430042,0.14465483,2954.1,2952.5,0.14448017]
[1769310430242,4.29628301,2954.0,2952.5,0.14448017]
[1769310430439,0.14465483,2954.1,2952.5,0.14448017]
[1769310430650,4.29745341,2954.0,2952.5,0.14448017]
[1769310430948,0.14465483,2954.1,2952.5,0.14448017]
[1769310431150,4.29752771,2954.0,2952.5,0.14448017]
[1769310431351,0.14465483,2954.1,2952.5,0.14448017]
[1769310431553,4.29855138,2954.0,2952.5,0.14448017]
[1769310431752,0.14465483,2954.1,2952.5,0.14448017]
[1769310431954,4.29855012,2954.0,2952.5,0.14448017]
[1769310432156,0.14465483,2954.1,2952.5,0.14448017]
[1769310432347,4.29855436,2954.0,2952.5,0.14448017]
[1769310432548,0.14465483,2954.1,2952.5,0.14448017]
[1769310432746,4.29971743,2954.0,2952.5,0.14448017]
[1769310432944,0.14465483,2954.1,2952.5,0.14448017]
[1769310433147,4.29974205,2954.0,2952.5,0.14448017]
[1769310433348,4.30115742,2953.9,2952.5,0.14448017]
[1769310433552,0.14465483,2954.1,2952.5,0.14448017]
[1769310433750,4.30115742,2954.0,2952.5,0.14448017]
[1769310433952,4.30115742,2953.9,2952.5,0.14448017]
[1769310434153,0.14465483,2954.1,2952.5,0.14448017]
[1769310434354,4.30275142,2954.0,2952.5,0.14448017]
[1769310434554,4.30275142,2953.9,2952.5,0.14448017]
[1769310434751,0.14465483,2954.1,2952.5,0.14448017]
[1769310434951,4.30292211,2954.0,2952.5,0.14448017]
[1769310435250,4.30292211,2953.9,2952.5,0.14448017]
[1769310435452,4.30292211,2953.8,2952.5,0.14448017]
[1769310435656,0.14465483,2954.1,2952.5,0.14448017]
[1769310435956,4.30468764,2954.0,2952.5,0.14448017]
[1769310436148,4.30468764,2953.9,2952.5,0.14448017]
[1769310436344,4.30468764,2953.8,2952.5,0.14448017]
[1769310436550,0.14465483,2954.1,2952.5,0.14448017]
[1769310436755,4.30714088,2954.0,2952.5,0.14448017]
[1769310437053,4.30714088,2953.9,2952.5,0.14448017]
[1769310437259,4.30714088,2953.8,2952.5,0.14448017]
[1769310437555,4.30714088,2953.7,2952.5,0.14448017]
[1769310437759,0.14465483,2954.1,2952.5,0.14448017]
[1769310438053,4.31254309,2954.0,2952.5,0.14448017]
[1769310438247,4.31254309,2953.9,2952.5,0.14448017]
[1769310438444,4.31254309,2953.8,2952.5,0.14448017]
[1769310438648,4.31254309,2953.7,2952.5,0.14448017]
[1769310438844,0.14465483,2954.1,2952.5,0.14448017]
[1769310439057,4.31355437,2954.0,2952.5,0.14448017]
[1769310439249,4.31355437,2953.9,2952.5,0.14448017]
[1769310439453,4.31355437,2953.8,2952.5,0.14448017]
[1769310439648,4.31355437,2953.7,2952.5,0.14448017]
[1769310439854,0.14465483,2954.1,2952.5,0.14448017]
[1769310440051,4.31357988,2954.0,2952.5,0.14448017]
[1769310440249,4.31357988,2953.9,2952.5,0.14448017]
[1769310440450,4.31357988,2953.8,2952.5,0.14448017]
[1769310440653,4.31357988,2953.7,2952.5,0.14448017]
[1769310440853,0.14465483,2954.1,2952.5,0.14448017]
[1769310441050,4.31360433,2954.0,2952.5,0.14448017]
[1769310441254,4.31360433,2953.9,2952.5,0.14448017]
[1769310441454,4.31360433,2953.8,2952.5,0.14448017]
[1769310441656,4.31360433,2953.7,2952.5,0.14448017]
[1769310441856,4.31360433,2953.6,2952.5,0.14448017]
[1769310442057,0.14465483,2954.1,2952.5,0.14448017]
[1769310442256,4.31333705,2954.0,2952.5,0.14448017]
[1769310442458,4.31333705,2953.9,2952.5,0.14448017]
[1769310442658,4.31333705,2953.8,2952.5,0.14448017]
[1769310442857,4.31333705,2953.7,2952.5,0.14448017]
[1769310443057,4.31333705,2953.6,2952.5,0.14448017]
[1769310443256,0.14465483,2954.1,2952.5,0.14448017]
[1769310443457,4.31310445,2954.0,2952.5,0.14448017]
[1769310443658,4.31310445,2953.9,2952.5,0.14448017]
[1769310443951,4.31310445,2953.8,2952.5,0.14448017]
[1769310444156,4.31310445,2953.7,2952.5,0.14448017]
[1769310444456,4.31310445,2953.6,2952.5,0.14448017]
[1769310444656,0.14465483,2954.1,2952.5,0.14448017]
[1769310444856,0.78000326,2953.8,2952.5,0.92448343]
[1769310445065,4.31302957,2953.7,2952.6,0.15223898]
[1769310445262,0.78000326,2953.9,2952.6,0.15223898]
[1769310445465,4.31301743,2953.8,2952.6,0.15223898]
[1769310445664,4.31301743,2953.7,2952.6,0.15223898]
[1769310445857,0.78000326,2953.9,2952.6,0.15223898]
[1769310446058,4.31301734,2953.8,2952.6,0.15223898]
[1769310446259,4.31301734,2953.7,2952.6,0.15223898]
[1769310446563,0.78000326,2953.9,2952.6,0.15223898]
[1769310446762,4.31301998,2953.8,2952.6,0.15223898]
[1769310446963,4.31301998,2953.7,2952.6,0.15223898]
[1769310447269,0.78000326,2953.9,2952.6,0.15223898]
[1769310447465,4.31302523,2953.8,2952.6,0.15223898]
[1769310447666,4.31302523,2953.7,2952.6,0.15223898]
[1769310447866,0.78000326,2953.9,2952.6,0.15223898]
[1769310448168,4.31302469,2953.8,2952.6,0.15223898]
[1769310448369,4.31302469,2953.7,2952.6,0.15223898]
[1769310448571,0.78000326,2953.9,2952.6,0.15223898]
[1769310448771,4.31302122,2953.8,2952.6,0.15223898]
[1769310449067,4.31302122,2953.7,2952.6,0.15223898]
[1769310449272,0.78000326,2953.9,2952.6,0.15223898]
[1769310449567,4.31302061,2953.8,2952.6,0.15223898]
[1769310449761,4.31302061,2953.7,2952.6,0.15223898]
[1769310449961,0.78000326,2953.9,2952.6,0.15223898]
[1769310450160,4.31302074,2953.8,2952.6,0.15223898]
[1769310450369,4.31302074,2953.7,2952.6,0.15223898]
[1769310450570,0.78000326,2953.9,2952.6,0.15223898]
[1769310450763,4.31302875,2953.8,2952.6,0.15223898]
[1769310450963,4.31302875,2953.7,2952.6,0.15223898]
[1769310451168,0.78000326,2953.9,2952.6,0.15223898]
[1769310451369,4.31303151,2953.8,2952.6,0.15223898]
[1769310451569,4.31303151,2953.7,2952.6,0.15223898]
[1769310451771,0.78000326,2953.9,2952.6,0.15223898]
[1769310452070,4.31302994,2953.8,2952.6,0.15223898]
[1769310452270,4.31302994,2953.7,2952.6,0.15223898]
[1769310452472,0.78000326,2953.9,2952.6,0.15223898]
[1769310452873,4.31303272,2953.8,2952.6,0.15223898]
[1769310453073,4.31303272,2953.7,2952.6,0.15223898]
[1769310453273,0.78000326,2953.9,2952.6,0.15223898]
[1769310453469,4.31303609,2953.8,2952.6,0.15223898]
[1769310453670,4.31303609,2953.7,2952.6,0.15223898]
[1769310453874,0.78000326,2953.9,2952.6,0.15223898]
[1769310454062,4.31303699,2953.8,2952.6,0.15223898]
[1769310454268,4.31303699,2953.7,2952.6,0.15223898]
[1769310454564,0.78000326,2953.9,2952.6,0.15223898]
[1769310454764,4.31304115,2953.8,2952.6,0.15223898]
[1769310454973,4.31304115,2953.7,2952.6,0.15223898]
[1769310455273,0.78000326,2953.9,2952.6,0.15223898]
[1769310455474,4.31304524,2953.8,2952.6,0.15223898]
[1769310455675,4.31304524,2953.7,2952.6,0.15223898]
[1769310455878,0.78000326,2953.9,2952.6,0.15223898]
[1769310456077,4.31460575,2953.8,2952.6,0.15223898]
[1769310456277,4.31460575,2953.7,2952.6,0.15223898]
[1769310456477,0.78000326,2953.9,2952.6,0.15223898]
[1769310456779,4.31461165,2953.8,2952.6,0.15223898]
[1769310456970,4.31461165,2953.7,2952.6,0.15223898]
[1769310457171,4.31461111,2953.6,2952.6,0.15223898]
[1769310457376,0.78000326,2953.9,2952.6,0.15223898]
[1769310457674,4.31461883,2953.8,2952.6,0.15223898]
[1769310457875,4.31461883,2953.7,2952.6,0.15223898]
[1769310458079,4.3144849,2953.6,2952.6,0.15223898]
[1769310458377,0.78000326,2953.9,2952.6,0.93224224]
[1769310458577,4.31432871,2953.8,2952.6,0.93224224]
[1769310458777,5.09433197,2953.7,2952.4,0.95229919]
[1769310459077,4.31432871,2953.6,2952.4,0.95229919]
[1769310459681,4.31432871,2953.6,2952.5,0.15263736]
[1769310464181,4.31432871,2953.6,2952.6,0.78000326]
[1769310464381,0.78000326,2953.9,2952.6,0.78000326]
[1769310464583,4.3132301,2953.8,2952.6,0.78000326]
[1769310464782,4.3132301,2953.7,2952.6,0.78000326]
[1769310464983,4.3132301,2953.6,2952.6,0.78000326]
[1769310465283,0.78000326,2953.9,2952.6,0.78000326]
[1769310465485,4.31323026,2953.8,2952.6,0.78000326]
[1769310465691,4.31323026,2953.7,2952.6,0.78000326]
[1769310465982,4.31323026,2953.6,2952.6,0.78000326]
[1769310466183,0.78000326,2953.9,2952.6,0.78000326]
[1769310466385,4.3132368,2953.8,2952.6,0.78000326]
[1769310466585,4.3132368,2953.7,2952.6,0.78000326]
[1769310466882,4.3132368,2953.6,2952.6,0.78000326]
[1769310467078,0.78000326,2953.9,2952.6,0.78000326]
[1769310467282,4.31322798,2953.8,2952.6,0.78000326]
[1769310467481,4.31322798,2953.7,2952.6,0.78000326]
[1769310467683,4.31322798,2953.6,2952.6,0.78000326]
[1769310467874,0.78000326,2953.9,2952.6,0.78000326]